bitfinex/quotes_SOLUSD_20260102
["timestamp","ask_amount","ask_price","bid_price","bid_amount"]
[1767395390095,0.67578546,132.46,132.43,8.34553814]
[1767395390305,2.68872333,132.45,132.43,0.1]
[1767395390605,2.68872333,132.45,132.43,0.7946218]
[1767395390804,2.20661325,132.45,132.43,0.7946218]
[1767395391297,2.88639099,132.46,132.43,0.7946218]
[1767395392611,2.20661325,132.45,132.43,0.7946218]
[1767395393595,2.68477097,132.45,132.43,0.1]
[1767395393913,2.20661325,132.45,132.43,0.7946218]
[1767395395018,2.20661325,132.45,132.43,8.34573023]
[1767395395214,0.67977774,132.47,132.44,0.6946218]
[1767395395421,2.88639099,132.47,132.44,0.6946218]
[1767395395822,2.20661325,132.46,132.44,0.6946218]
[1767395399623,2.68477097,132.46,132.44,0.6946218]
[1767395400425,2.20661325,132.46,132.44,0.6946218]
[1767395401122,0.67470341,132.45,132.43,0.80961006]
[1767395401306,2.88131666,132.45,132.43,0.1]
[1767395401503,2.68979456,132.44,132.41,14.58961006]
[1767395401820,7.54944958,132.46,132.42,0.70961006]
[1767395401821,10.43272035,132.46,132.42,0.70961006]
[1767395403713,10.43272035,132.46,132.42,8.2613131]
[1767395404305,10.43272035,132.46,132.43,0.70961006]
[1767395405612,2.88327077,132.46,132.43,8.2607342]
[1767395405809,0.48124674,132.46,132.44,0.70961006]
[1767395406130,0.48124674,132.46,132.43,8.2607342]
[1767395407117,0.67665752,132.47,132.44,0.70961006]
[1767395409733,0.67665752,132.47,132.44,8.2601828]
[1767395410430,2.88327077,132.47,132.44,8.2601828]
[1767395413944,8.2250169,132.48,132.45,0.70961006]
[1767395414128,5.61453944,132.47,132.45,0.70961006]
[1767395414321,2.88327077,132.48,132.45,0.70961006]
[1767395415224,2.88327077,132.48,132.45,8.25954112]
[1767395417424,9.75457786,132.49,132.46,0.70961006]
[1767395417636,5.61910338,132.48,132.46,0.70961006]
[1767395417828,10.2358246,132.49,132.46,0.70961006]
[1767395418138,5.61908364,132.48,132.46,0.70961006]
[1767395418334,10.2358246,132.49,132.46,0.70961006]
[1767395418510,5.61979077,132.48,132.46,0.70961006]
[1767395418712,10.2358246,132.49,132.46,0.70961006]
[1767395418936,5.62085279,132.48,132.46,0.70961006]
[1767395419140,10.2358246,132.49,132.46,0.70961006]
[1767395419333,5.62054135,132.48,132.46,0.70961006]
[1767395419535,2.68785999,132.49,132.46,0.70961006]
[1767395419736,5.62069234,132.48,132.46,0.70961006]
[1767395419936,2.68785999,132.49,132.46,0.70961006]
[1767395420144,5.62069234,132.48,132.46,0.70961006]
[1767395420437,2.68785999,132.49,132.47,0.70961006]
[1767395423744,2.20661325,132.49,132.47,0.70961006]
[1767395426648,3.44867426,132.49,132.47,0.70961006]
[1767395429326,11.47722432,132.5,132.47,0.70961006]
[1767395429549,5.62485325,132.49,132.47,0.70961006]
[1767395429851,11.47722432,132.5,132.47,0.70961006]
[1767395430026,5.62623313,132.49,132.47,0.70961006]
[1767395430230,11.47722432,132.5,132.47,0.70961006]
[1767395430428,9.07457099,132.49,132.47,0.70961006]
[1767395430753,3.44867426,132.49,132.47,0.70961006]
[1767395433851,4.12337767,132.49,132.47,0.70961006]
[1767395434236,3.44867426,132.49,132.47,0.70961006]
[1767395437952,4.16501366,132.48,132.46,0.71915789]
[1767395438157,4.16501366,132.48,132.45,8.26917676]
[1767395438854,0.44196168,132.47,132.45,7.55001887]
[1767395439360,3.44867426,132.48,132.45,8.26917676]
[1767395439562,4.16781315,132.48,132.45,8.26917676]
[1767395440058,0.43919018,132.47,132.44,19.59448925]
[1767395440256,3.44867426,132.48,132.45,0.71915789]
[1767395440456,4.16781315,132.48,132.45,0.71915789]
[1767395441455,4.16781315,132.48,132.45,8.2691646]
[1767395441759,4.16781315,132.48,132.46,0.71915789]
[1767395442459,4.16781315,132.48,132.45,7.55000671]
[1767395442764,4.16781315,132.48,132.45,8.2691646]
[1767395443656,4.16781315,132.48,132.46,0.71915789]
[1767395444565,0.71913889,132.48,132.46,0.71915789]
[1767395445465,0.71913889,132.48,132.45,0.71915789]
[1767395447967,0.71913889,132.48,132.45,8.26912456]
[1767395448467,0.71913889,132.48,132.46,0.71915789]
[1767395449469,5.63658006,132.47,132.46,0.71915789]
[1767395449966,5.63658006,132.47,132.45,8.26912456]
[1767395450169,0.71913889,132.48,132.45,8.26912456]
[1767395450667,0.71913889,132.48,132.46,0.71915789]
[1767395451644,0.71913889,132.48,132.45,0.71915789]
[1767395451645,8.26751604,132.48,132.45,0.71915789]
[1767395451849,5.63796345,132.47,132.45,0.71915789]
[1767395452050,8.26751604,132.48,132.45,0.71915789]
[1767395452252,5.63826942,132.47,132.45,0.71915789]
[1767395452568,11.7161903,132.48,132.45,0.71915789]
[1767395452754,5.63911414,132.47,132.45,0.71915789]
[1767395452956,11.7161903,132.48,132.45,0.71915789]
[1767395453272,5.63911414,132.47,132.45,0.71915789]
[1767395453457,4.16781315,132.48,132.45,0.71915789]
[1767395453659,5.63957202,132.47,132.45,0.71915789]
[1767395453855,0.71913889,132.48,132.45,0.71915789]
[1767395454057,5.63957352,132.47,132.45,0.71915789]
[1767395454266,0.71913889,132.48,132.45,0.71915789]
[1767395454566,5.63954236,132.47,132.45,0.71915789]
[1767395454769,0.71913889,132.48,132.45,0.71915789]
[1767395454975,5.63901125,132.47,132.46,0.71915789]
[1767395456278,5.63901125,132.47,132.46,8.26860678]
[1767395456478,0.71913889,132.49,132.46,8.26860678]
[1767395456668,5.64160358,132.48,132.46,8.26860678]
[1767395456975,0.71913889,132.49,132.46,8.26860678]
[1767395457180,5.64160058,132.48,132.46,8.26860678]
[1767395457371,0.71913889,132.49,132.46,8.26860678]
[1767395457682,5.64448917,132.48,132.46,8.26860678]
[1767395457882,0.71913889,132.49,132.46,8.26860678]
[1767395458179,5.64449067,132.48,132.46,8.26860678]
[1767395458488,0.71913889,132.49,132.46,8.26860678]
[1767395458688,5.64511513,132.48,132.46,8.26860678]
[1767395458854,0.71913889,132.49,132.46,8.26860678]
[1767395459051,5.6448231,132.48,132.46,8.26860678]
[1767395459277,0.71913889,132.49,132.46,8.26860678]
[1767395459455,5.64507929,132.48,132.46,8.26860678]
[1767395459651,0.71913889,132.49,132.46,8.26860678]
[1767395459856,5.64509688,132.48,132.46,8.26860678]
[1767395460080,0.71913889,132.49,132.46,8.26860678]
[1767395460282,5.64510067,132.48,132.46,8.26860678]
[1767395460475,0.71913889,132.49,132.46,8.26860678]
[1767395460677,5.64515146,132.48,132.46,8.26860678]
[1767395460884,0.71913889,132.49,132.46,8.26860678]
[1767395461084,5.64515675,132.48,132.46,8.26860678]
[1767395461385,0.71913889,132.49,132.46,8.26860678]
[1767395461590,5.64514165,132.48,132.46,8.26860678]
[1767395461767,0.71913889,132.49,132.46,8.26860678]
[1767395462086,5.64514165,132.48,132.46,8.26860678]
[1767395462289,0.71913889,132.49,132.46,8.26860678]
[1767395462497,5.64514192,132.48,132.46,8.26860678]
[1767395462677,0.71913889,132.49,132.46,8.26860678]
[1767395462877,5.64460444,132.48,132.46,8.26860678]
[1767395463078,0.71913889,132.49,132.46,8.26860678]
[1767395463280,5.64542932,132.48,132.46,8.26860678]
[1767395463479,0.71913889,132.49,132.46,8.26860678]
[1767395463701,5.64407307,132.48,132.46,8.26860678]
[1767395463881,0.71913889,132.49,132.46,8.26860678]
[1767395464083,112.6713558,132.55,132.48,0.65495755]
[1767395464279,3.44867426,132.53,132.48,0.65495755]
[1767395464474,5.0801845,132.52,132.48,0.65495755]
[1767395464675,0.70816269,132.51,132.48,0.65495755]
[1767395465493,116.18,132.55,132.45,0.65495755]
[1767395465494,0.70816269,132.48,132.45,0.65495755]
[1767395467094,0.70816269,132.48,132.45,8.20473239]
[1767395468268,4.15683695,132.48,132.45,0.65495755]
[1767395470793,0.70816269,132.47,132.45,0.65495755]
[1767395471115,4.15683695,132.48,132.45,8.20495795]
[1767395471318,0.70816269,132.48,132.46,0.65495755]
[1767395471497,0.70816269,132.48,132.45,8.20495795]
[1767395471699,0.70816269,132.48,132.45,0.65495755]
[1767395472012,0.70816269,132.47,132.45,0.65495755]
[1767395474237,4.15683695,132.48,132.45,0.65495755]
[1767395474538,0.70816269,132.48,132.45,0.65495755]
[1767395474738,4.15683695,132.48,132.45,0.65495755]
[1767395474920,0.70816269,132.47,132.45,0.65495755]
[1767395475234,0.70816269,132.47,132.43,7.55093931]
[1767395475536,0.70816269,132.43,132.35,30.97908798]
[1767395475729,0.70816269,132.43,132.4,7.55248931]
[1767395476121,5.64208062,132.42,132.39,26.43624913]
[1767395476321,0.70816269,132.43,132.39,26.43624913]
[1767395477219,0.70816269,132.43,132.36,26.44303414]
[1767395477437,0.70816269,132.43,132.39,0.45727711]
[1767395477936,0.67816269,132.43,132.39,0.45727711]
[1767395478848,0.67816269,132.43,132.4,8.0401472]
[1767395479844,4.12683695,132.43,132.4,8.0401472]
[1767395480048,0.70816269,132.42,132.39,8.04050226]
[1767395480442,4.15683695,132.43,132.4,7.55270345]
[1767395480639,4.15683695,132.43,132.4,8.03998056]
[1767395482029,3.44867426,132.47,132.42,0.65495755]
[1767395482234,3.44867426,132.48,132.43,0.65495755]
[1767395482434,3.44867426,132.47,132.43,0.65495755]
[1767395483036,3.44867426,132.46,132.43,0.65495755]
[1767395484059,4.15683695,132.46,132.43,0.65495755]
[1767395484783,0.70816269,132.45,132.42,8.20615404]
[1767395489058,0.70816269,132.45,132.43,0.6873338]
[1767395489239,2.91622886,132.46,132.43,0.6873338]
[1767395489439,0.70772667,132.46,132.43,0.6873338]
[1767395490562,0.70772667,132.46,132.41,21.08863667]
[1767395490854,2.91622886,132.46,132.41,21.08863667]
[1767395491061,0.68469647,132.45,132.41,21.08863667]
[1767395491862,0.68469647,132.46,132.42,7.55136205]
[1767395492060,7.54853466,132.48,132.42,40.21068541]
[1767395492061,0.68469647,132.48,132.42,40.21068541]
[1767395492362,2.89319866,132.48,132.42,42.4191876]
[1767395492554,2.89319866,132.48,132.43,0.508106]
[1767395492954,0.68469647,132.47,132.44,8.05869494]
[1767395493858,0.68469647,132.48,132.45,0.508106]
[1767395494060,2.89319866,132.49,132.45,0.508106]
[1767395494245,0.68469647,132.5,132.46,0.508106]
[1767395494440,0.68469647,132.5,132.47,0.508106]
[1767395495566,0.68469647,132.5,132.46,2.20850219]
[1767395495747,0.68469647,132.5,132.46,8.05703288]
[1767395500752,0.68469647,132.51,132.47,0.508106]
[1767395502873,0.68469647,132.51,132.47,8.05643225]
[1767395503248,0.68469647,132.5,132.47,8.05643225]
[1767395507567,0.68469647,132.49,132.46,8.05738245]
[1767395509482,2.89319866,132.5,132.47,0.508106]
[1767395509655,0.68469647,132.49,132.46,7.54927645]
[1767395509856,0.68469647,132.49,132.46,8.05738245]
[1767395510549,0.68469647,132.49,132.46,7.54927645]
[1767395510969,0.68469647,132.49,132.46,8.05738245]
[1767395511377,0.68469647,132.49,132.46,7.54927645]
[1767395516379,0.68469647,132.49,132.46,8.05738245]
[1767395522183,0.68469647,132.49,132.46,7.54927645]
[1767395522480,2.89228259,132.5,132.47,0.508106]
[1767395522684,0.6837804,132.49,132.47,0.508106]
[1767395523385,0.6837804,132.49,132.47,8.05697116]
[1767395524270,0.6837804,132.49,132.46,8.05747709]
[1767395525268,0.6837804,132.5,132.47,0.508106]
[1767395526693,0.6837804,132.5,132.47,8.05662785]
[1767395529694,0.6837804,132.49,132.46,8.05729123]
[1767395531666,0.6837804,132.49,132.46,6.55729123]
[1767395536694,0.6837804,132.5,132.47,0.508106]
[1767395538299,0.6837804,132.5,132.47,8.05684584]
[1767395541783,0.6837804,132.5,132.46,8.05755489]
[1767395542484,6.32970513,132.49,132.46,8.05755489]
[1767395542805,0.6837804,132.49,132.46,8.05755489]
[1767395544300,0.6837804,132.49,132.46,7.54944889]
[1767395544499,0.6837804,132.49,132.46,8.05755489]
[1767395545597,0.6837804,132.49,132.46,7.54944889]
[1767395547682,0.6837804,132.49,132.46,8.05755489]
[1767395551702,0.6837804,132.49,132.46,7.54944889]
[1767395554609,7.54808577,132.49,132.42,19.38648079]
[1767395554814,3.4486464,132.45,132.42,0.508106]
[1767395555012,3.4486464,132.45,132.42,8.05951737]
[1767395557191,4.12261312,132.45,132.42,8.05951737]
[1767395558210,0.67396672,132.45,132.42,8.05951737]
[1767395558516,4.12261312,132.45,132.42,8.05951737]
[1767395559916,0.67396672,132.43,132.41,21.9901124]
[1767395560119,0.67396672,132.43,132.41,14.4380087]
[1767395560415,0.67396672,132.43,132.41,0.6580087]
[1767395560592,0.64396672,132.43,132.4,38.60554787]
[1767395560993,0.64396672,132.43,132.41,7.55219047]
[1767395561208,3.4486464,132.44,132.41,8.21019917]
[1767395562615,4.12261312,132.44,132.41,8.21019917]
[1767395564518,0.67396672,132.44,132.41,8.21019917]
[1767395564712,4.12261312,132.44,132.41,8.21019917]
[1767395567522,0.67396672,132.43,132.41,8.21019917]
[1767395568024,4.12261312,132.44,132.41,8.21019917]
[1767395568428,0.67396672,132.43,132.41,7.55219047]
[1767395569008,4.12261312,132.44,132.41,8.21019917]
[1767395570422,4.12261312,132.45,132.42,0.6580087]
[1767395570617,0.67396672,132.45,132.42,0.6580087]
[1767395573123,0.67396672,132.45,132.42,8.2097244]
[1767395573621,0.67396672,132.44,132.41,8.21027118]
[1767395573821,0.67396672,132.44,132.42,7.55167537]
[1767395574129,0.67396672,132.45,132.43,0.6580087]
[1767395574331,0.67396672,132.46,132.43,0.6580087]
[1767395574857,0.67396672,132.44,132.41,8.21021935]
[1767395575720,0.67396672,132.43,132.4,38.6056386]
[1767395579330,0.67396672,132.43,132.41,0.6580087]
[1767395580631,7.55027374,132.45,132.41,0.6580087]
[1767395580632,0.67537799,132.45,132.42,0.67941784]
[1767395580926,0.67537799,132.46,132.43,0.67941784]
[1767395581931,0.67537799,132.46,132.43,8.23037988]
[1767395586230,0.67537799,132.46,132.43,7.55096204]
[1767395586434,0.67537799,132.46,132.43,8.23037988]
[1767395591241,0.67537799,132.46,132.44,0.67941784]
[1767395592544,0.67537799,132.46,132.43,8.23036544]
[1767395593619,0.67537799,132.46,132.44,0.67941784]
[1767395594542,0.67537799,132.46,132.43,8.23036544]
[1767395606445,0.67537799,132.43,132.4,30.39502035]
[1767395606623,8.52041516,132.42,132.4,30.39502035]
[1767395606829,2.88482862,132.42,132.4,30.39502035]
[1767395607243,0.67537799,132.42,132.4,38.62719654]
[1767395607541,2.88482862,132.43,132.4,38.62719654]
[1767395607754,0.67537799,132.43,132.4,38.62719654]
[1767395608838,0.67537799,132.43,132.4,37.9477787]
[1767395609145,0.67537799,132.43,132.4,38.61039413]
[1767395610147,0.67537799,132.43,132.4,8.21537378]
[1767395612556,0.70516079,132.42,132.39,22.01535921]
[1767395614356,0.70516079,132.42,132.4,8.23475768]
[1767395622834,0.70516079,132.45,132.42,0.68191862]
[1767395623040,5.63095044,132.44,132.42,0.68191862]
[1767395623235,0.70516079,132.45,132.42,0.68191862]
[1767395623441,8.25466072,132.46,132.42,0.68191862]
[1767395623635,6.33648473,132.45,132.42,0.68191862]
[1767395623838,0.70516079,132.45,132.42,0.68191862]
[1767395624337,0.70516079,132.47,132.44,0.68191862]
[1767395627269,0.70516079,132.47,132.44,8.23224467]
[1767395628542,0.70516079,132.46,132.44,0.68191862]
[1767395628949,0.70516079,132.46,132.43,8.23289902]
[1767395636477,2.91461142,132.46,132.43,8.23289902]
[1767395637381,0.70516079,132.45,132.43,8.23289902]
[1767395637575,0.70516079,132.45,132.43,7.5509804]
[1767395640681,0.70516079,132.45,132.43,8.23388289]
[1767395645972,0.70109432,132.46,132.43,8.23388289]
[1767395646478,0.70109432,132.49,132.45,0.68290249]
[1767395647589,0.70109432,132.49,132.45,8.23264664]
[1767395648085,0.70109432,132.48,132.45,8.23264664]
[1767395650787,0.70109432,132.47,132.44,8.23336813]
[1767395665208,0.70109432,132.49,132.47,0.68290249]
[1767395665411,0.70109432,132.51,132.47,2.20945063]
[1767395665593,5.64046724,132.5,132.47,2.20945063]
[1767395665797,0.70109432,132.5,132.47,2.20945063]
[1767395666399,0.70109432,132.5,132.47,9.75797534]
[1767395666600,0.70109432,132.5,132.47,7.54852471]
[1767395666802,0.70109432,132.5,132.47,9.75797534]
[1767395667398,0.70109432,132.5,132.47,10.44087783]
[1767395668622,0.70109432,132.5,132.47,11.67875412]
[1767395671118,0.70109432,132.5,132.47,8.2314272]
[1767395672214,0.70109432,132.5,132.48,0.71455609]
[1767395672435,7.5461083,132.52,132.48,8.26275736]
[1767395672621,6.30756365,132.51,132.48,8.26275736]
[1767395672814,0.66970495,132.51,132.48,8.26275736]
[1767395676321,0.66970495,132.49,132.46,8.26392582]
[1767395676519,0.66970495,132.49,132.46,22.04392582]
[1767395678923,0.66970495,132.49,132.47,0.71455609]
[1767395682200,0.66970495,132.49,132.47,8.26332249]
[1767395687222,0.66970495,132.49,132.47,7.5487664]
[1767395695937,0.66970495,132.51,132.48,0.71455609]
[1767395696242,0.66970495,132.5,132.47,8.26332249]
[1767395701236,0.66970495,132.5,132.48,0.71656702]
[1767395701938,0.66970495,132.5,132.48,8.26463789]
[1767395702515,0.6892728,132.52,132.49,0.71656702]
[1767395702730,6.33214088,132.51,132.49,0.71656702]
[1767395702934,6.33214088,132.51,132.48,8.26463789]
[1767395702935,0.6892728,132.51,132.48,8.26463789]
[1767395704838,0.6892728,132.51,132.49,0.71656702]
[1767395705140,0.6892728,132.51,132.48,7.54807087]
[1767395705141,0.6892728,132.51,132.48,8.26463789]
[1767395705520,0.6892728,132.51,132.49,0.71656702]
[1767395706033,0.6892728,132.55,132.51,0.71656702]
[1767395706235,0.6892728,132.53,132.5,14.49656702]
[1767395706532,0.6892728,132.53,132.51,0.71656702]
[1767395707129,0.6892728,132.53,132.51,8.26282674]
[1767395707918,0.6892728,132.54,132.51,8.26282674]
[1767395709545,0.6892728,132.54,132.51,11.71015366]
[1767395715650,0.6892728,132.54,132.51,8.26282674]
[1767395721853,0.6892728,132.54,132.52,0.71656702]
[1767395722057,0.6892728,132.55,132.52,0.71656702]
[1767395722428,0.6892728,132.56,132.54,0.71656702]
[1767395723756,0.6892728,132.56,132.53,22.04181734]
[1767395726562,0.6892728,132.56,132.54,0.71656702]
[1767395728853,0.2,132.59,132.56,0.71656702]
[1767395729055,0.684232,132.58,132.54,2.20448846]
[1767395729254,0.684232,132.58,132.53,15.98448846]
[1767395730250,0.684232,132.58,132.54,7.54465377]
[1767395730950,0.684232,132.58,132.55,8.23088127]
[1767395733052,0.69370755,132.57,132.54,7.54472849]
[1767395733259,0.69370755,132.57,132.54,8.23144431]
[1767395734268,0.69370755,132.57,132.54,10.43593277]
[1767395735362,0.89370755,132.59,132.56,0.68671582]
[1767395735547,0.89370755,132.59,132.57,2.89120428]
[1767395735741,0.2,132.59,132.58,2.20448846]
[1767395736558,0.2,132.59,132.57,2.89120428]
[1767395736774,1e-08,132.59,132.57,2.89120428]
[1767395737057,0.2,132.61,132.54,26.40695876]
[1767395737058,0.2,132.61,132.59,0.68671582]
[1767395737263,0.2,132.61,132.6,2.89120428]
[1767395737568,0.2,132.61,132.6,10.40380031]
[1767395737869,1e-08,132.61,132.6,10.40380031]
[1767395739978,0.2,132.63,132.61,0.68671582]
[1767395740251,0.2,132.63,132.61,2.86217738]
[1767395740463,0.2,132.63,132.61,2.20448846]
[1767395741451,0.2,132.64,132.62,2.20448846]
[1767395741664,0.2,132.64,132.61,13.76]
[1767395741665,0.2,132.65,132.63,2.20448846]
[1767395741973,0.2,132.65,132.63,7.53935687]
[1767395742175,0.2,132.65,132.63,8.22607269]
[1767395746973,0.2,132.65,132.63,10.43056115]
[1767395747155,0.2,132.65,132.63,8.22607269]
[1767395748172,0.2,132.65,132.63,10.43056115]
[1767395748473,0.2,132.65,132.64,0.68671582]
[1767395748984,0.89370755,132.65,132.62,8.2268811]
[1767395749356,0.69370755,132.64,132.62,8.2268811]
[1767395749759,0.89370755,132.65,132.62,8.2268811]
[1767395750175,3.09819601,132.65,132.62,8.2268811]
[1767395750380,0.89370755,132.65,132.62,8.2268811]
[1767395751271,0.69370755,132.64,132.62,0.68671582]
[1767395751460,0.69370755,132.64,132.61,21.98746492]
[1767395752287,0.69370755,132.64,132.61,24.19195338]
[1767395752860,0.89370755,132.65,132.62,0.68671582]
[1767395754076,0.89370755,132.65,132.63,0.68671582]
[1767395754494,0.2,132.65,132.63,0.68671582]
[1767395756380,0.2,132.65,132.63,8.22640898]
[1767395758191,0.89370755,132.65,132.62,8.22685744]
[1767395760571,0.69007212,132.64,132.61,21.98228351]
[1767395761892,0.69007212,132.64,132.61,21.30069083]
[1767395765771,0.45802599,132.61,132.59,7.54197562]
[1767395768074,0.45802599,132.61,132.57,0.68159268]
[1767395768580,0.46030004,132.59,132.56,21.98509722]
[1767395769467,0.46030004,132.59,132.57,7.54317413]
[1767395772095,0.69007212,132.6,132.57,8.22476681]
[1767395775009,2.89456058,132.6,132.57,8.22476681]
[1767395776499,0.69007212,132.6,132.57,8.22476681]
[1767395778778,2.89456058,132.6,132.57,8.22476681]
[1767395783211,0.69007212,132.6,132.57,8.22476681]
[1767395783506,2.66019422,132.63,132.58,0.68159268]
[1767395785108,2.89456058,132.64,132.59,0.68159268]
[1767395785289,2.89456058,132.64,132.62,0.68159268]
[1767395785290,2.20448846,132.64,132.62,0.68159268]
[1767395785994,3.09456058,132.65,132.62,0.68159268]
[1767395786586,0.45570576,132.64,132.61,8.22250211]
[1767395787810,0.89007212,132.65,132.62,0.68159268]
[1767395788009,1e-08,132.65,132.63,0.67035678]
[1767395789104,1e-08,132.65,132.63,8.20956219]
[1767395789406,1e-08,132.65,132.64,0.67035678]
[1767395789997,1e-08,132.65,132.63,8.20958873]
[1767395791815,1e-08,132.65,132.63,21.96958873]
[1767395792112,1e-08,132.65,132.63,8.20958873]
[1767395792413,1e-08,132.65,132.63,21.96958873]
[1767395793903,1e-08,132.65,132.64,0.67038332]
[1767395801018,0.4628966,132.65,132.63,21.29920541]
[1767395801409,1e-08,132.65,132.63,21.96958873]
[1767395802622,0.46067527,132.65,132.63,21.29920541]
[1767395803529,1e-08,132.65,132.63,21.96958873]
[1767395803819,1e-08,132.65,132.63,14.43038332]
[1767395805202,3.90007298,132.65,132.62,14.43038332]
[1767395805906,0.46067527,132.65,132.63,0.67038332]
[1767395812904,4.12220636,132.64,132.61,0.67038332]
[1767395813100,4.12220636,132.64,132.61,14.43038332]
[1767395815527,0.68280865,132.64,132.61,21.97110103]
[1767395815725,11.66326238,132.65,132.62,0.67038332]
[1767395816124,0.46067526,132.64,132.61,21.97110103]
[1767395816829,1e-08,132.65,132.62,0.67038332]
[1767395817536,0.46067527,132.65,132.62,0.67038332]
[1767395818222,0.46067527,132.65,132.62,8.21049889]
[1767395818847,0.46067527,132.65,132.62,11.6498966]
[1767395819348,0.46067527,132.65,132.62,8.21049889]
[1767395819536,0.46067527,132.65,132.63,0.68243235]
[1767395819727,1e-08,132.65,132.63,0.68243235]
[1767395821038,0.89786004,132.66,132.63,10.97903727]
[1767395821039,1e-08,132.66,132.63,10.97903727]
[1767395821245,1e-08,132.66,132.64,13.76]
[1767395821614,1e-08,132.66,132.65,8.22106785]
[1767395822127,1e-08,132.67,132.66,0.68243235]
[1767395822560,1e-08,132.68,132.67,0.68243235]
[1767395823643,1e-08,132.68,132.67,8.2199314]
[1767395823821,1e-08,132.68,132.67,21.9799314]
[1767395824932,1e-08,132.68,132.67,14.44243235]
[1767395825317,1e-08,132.68,132.67,0.68243235]
[1767395825735,1e-08,132.68,132.66,0.68243235]
[1767395825942,0.69786005,132.68,132.66,13.76]
[1767395826520,4.13725776,132.68,132.65,14.44243235]
[1767395827030,4.13725776,132.68,132.65,21.98097109]
[1767395827233,0.69786005,132.68,132.65,21.98097109]
[1767395829922,1e-08,132.68,132.66,0.68243235]
[1767395830121,1e-08,132.68,132.67,0.68243235]
[1767395831551,0.2,132.7,132.67,10.97689676]
[1767395831759,0.2,132.71,132.68,17.19939771]
[1767395832249,0.2,132.71,132.68,17.88183006]
[1767395833844,0.2,132.71,132.68,25.41825632]
[1767395834433,0.2,132.72,132.7,0.68243235]
[1767395834761,0.89786004,132.72,132.69,0.68243235]
[1767395835068,0.89786004,132.72,132.69,4.12183006]
[1767395835364,0.89786004,132.72,132.7,3.43939771]
[1767395835531,0.2,132.72,132.7,0.68243235]
[1767395835728,0.69786004,132.71,132.69,13.76]
[1767395837164,0.69786004,132.71,132.69,21.29603177]
[1767395837460,0.89786004,132.72,132.69,21.97846412]
[1767395838022,0.2,132.72,132.7,0.68243235]
[1767395840149,0.2,132.72,132.7,8.21808157]
[1767395841232,0.89786004,132.72,132.7,7.53564922]
[1767395844061,0.89786004,132.72,132.69,21.97877255]
[1767395844265,0.69786004,132.71,132.69,21.2963402]
[1767395845864,0.2,132.72,132.69,25.41817026]
[1767395846048,0.2,132.72,132.7,0.68243235]
[1767395846966,0.2,132.72,132.7,11.65762286]
[1767395848472,0.2,132.73,132.71,4.12116897]
[1767395848643,0.2,132.73,132.71,4.09195064]
[1767395849165,0.8924535,132.73,132.72,7.53465943]
[1767395849346,0.2,132.73,132.72,7.53465943]
[1767395849552,1e-08,132.73,132.72,7.53465943]
[1767395850849,1e-08,132.73,132.71,7.53522718]
[1767395851658,1e-08,132.73,132.72,0.69336353]
[1767395852080,0.68597101,132.73,132.7,8.22891213]
[1767395854753,0.68597101,132.73,132.7,21.98891213]
[1767395861778,1e-08,132.73,132.71,0.69336353]
[1767395863672,1e-08,132.73,132.71,8.22832493]
[1767395863879,1e-08,132.73,132.72,0.69336353]
[1767395865259,1e-08,132.73,132.72,8.22802296]
[1767395866272,1e-08,132.73,132.72,7.53465943]
[1767395866669,1e-08,132.73,132.71,7.53501492]
[1767395866870,1e-08,132.73,132.7,13.76]
[1767395866871,2.19831657,132.73,132.7,13.76]
[1767395867195,2.19831657,132.72,132.69,21.29628023]
[1767395867685,2.19831657,132.72,132.69,21.98964376]
[1767395868686,2.88428757,132.72,132.69,21.98964376]
[1767395870884,0.60158073,132.71,132.69,21.29628023]
[1767395871398,2.88428757,132.72,132.69,0.69336353]
[1767395871791,0.685971,132.73,132.69,0.69336353]
[1767395871985,10.61812771,132.74,132.69,0.69336353]
[1767395873185,0.60158073,132.73,132.69,8.22946036]
[1767395873386,2.7998973,132.73,132.69,8.22946036]
[1767395874081,0.60158073,132.73,132.7,0.69336353]
[1767395874281,2.7998973,132.73,132.7,0.69336353]
[1767395874584,0.60158073,132.73,132.7,0.69336353]
[1767395875793,2.7998973,132.73,132.7,0.69336353]
[1767395878186,0.60158073,132.73,132.7,0.69336353]
[1767395878380,2.7998973,132.73,132.7,0.69336353]
[1767395880580,2.85772507,132.72,132.69,8.25293146]
[1767395883073,0.62787761,132.71,132.69,7.53609683]
[1767395883593,7.53416152,132.73,132.68,22.0135378]
[1767395883594,7.53409176,132.73,132.68,22.0135378]
[1767395883794,2.19831657,132.71,132.69,0.71683463]
[1767395883996,2.19831657,132.73,132.7,0.71683463]
[1767395885798,9.73260399,132.73,132.7,0.71683463]
[1767395886001,9.83160399,132.73,132.7,0.71683463]
[1767395886393,8.29952445,132.74,132.7,8.25255359]
[1767395886598,10.49784102,132.74,132.7,8.25255359]
[1767395886986,2.19831657,132.73,132.7,8.25255359]
[1767395887391,2.75939976,132.72,132.69,0.71683463]
[1767395887595,2.19831657,132.71,132.69,0.71683463]
[1767395887894,2.3019374,132.71,132.68,22.01350745]
[1767395888096,2.3019374,132.71,132.69,0.71683463]